bitfinex-derivatives/quotes_BTCF0:USTF0_20250209
["timestamp","ask_amount","ask_price","bid_price","bid_amount"]
[1739114806059,0.6383847,96499.0,96498.0,0.003]
[1739114806457,0.6383847,96499.0,96498.0,0.002]
[1739114807054,0.9991847,96499.0,96498.0,0.002]
[1739114817769,0.6383847,96499.0,96498.0,0.002]
[1739114829681,0.2072655,96480.0,96479.0,0.0355]
[1739114829871,0.2072698,96478.0,96477.0,0.00015539]
[1739114831275,0.5680698,96478.0,96477.0,0.00015539]
[1739114831685,0.5750698,96478.0,96477.0,0.00015539]
[1739114832487,0.5830698,96478.0,96477.0,0.00015539]
[1739114833886,0.59347219,96478.0,96477.0,0.00015539]
[1739114845101,0.23267219,96478.0,96477.0,0.00015539]
[1739114845290,0.59347219,96478.0,96477.0,0.00015539]
[1739114848996,0.2072892,96469.0,96468.0,0.0343]
[1739114850400,0.2112892,96469.0,96468.0,0.0343]
[1739114850794,0.2112892,96469.0,96467.0,0.033]
[1739114850795,0.2072913,96468.0,96467.0,0.033]
[1739114852294,0.2102913,96468.0,96467.0,0.033]
[1739114853900,0.2142913,96468.0,96467.0,0.033]
[1739114855201,0.22464276,96468.0,96467.0,0.033]
[1739114856102,0.01735146,96468.0,96465.0,0.2072977]
[1739114856298,0.2072956,96466.0,96465.0,0.2072977]
[1739114857004,0.2073042,96462.0,96461.0,0.5681053]
[1739114858213,0.2083042,96462.0,96461.0,0.5681053]
[1739114858601,0.2103042,96462.0,96461.0,0.5681053]
[1739114867417,0.2103042,96462.0,96461.0,0.2073053]
[1739114879931,0.2073085,96460.0,96459.0,0.00015548]
[1739114881324,0.2083085,96460.0,96459.0,0.00015548]
[1739114884643,0.2083085,96460.0,96459.0,0.20746618]
[1739114890730,0.2083085,96460.0,96459.0,0.00015548]
[1739114896942,0.2093085,96460.0,96459.0,0.00015548]
[1739114898648,0.2113085,96460.0,96459.0,0.00015548]
[1739114902245,0.2797085,96460.0,96459.0,0.00015548]
[1739114906446,0.2837085,96460.0,96459.0,0.00015548]
[1739114907560,0.2877085,96460.0,96459.0,0.00015548]
[1739114910453,0.2817085,96460.0,96459.0,0.00015548]
[1739114910654,0.2907085,96460.0,96459.0,0.00015548]
[1739114911359,0.2847085,96460.0,96459.0,0.00015548]
[1739114911662,0.2937085,96460.0,96459.0,0.00015548]
[1739114920862,0.6545085,96460.0,96459.0,0.00015548]
[1739114924071,0.6541485,96460.0,96459.0,0.00015548]
[1739114925167,0.44684,96460.0,96443.0,0.3608]
[1739114925373,0.2073428,96444.0,96443.0,0.3608]
[1739114926671,0.2103428,96444.0,96443.0,0.3608]
[1739114927272,0.2073471,96442.0,96441.0,0.39392248]
[1739114927465,0.2073471,96442.0,96441.0,0.75472248]
[1739114928176,0.2073471,96442.0,96441.0,0.39392248]
[1739114928377,0.2073471,96442.0,96441.0,0.75472248]
[1739114928673,0.2103471,96442.0,96441.0,0.75472248]
[1739114930267,0.2103471,96442.0,96441.0,0.54737388]
[1739114930467,0.2103471,96442.0,96441.0,0.18657388]
[1739114931363,0.2205927,96442.0,96441.0,0.18657388]
[1739114932165,0.2205927,96442.0,96441.0,0.00155503]
[1739114932369,0.0132456,96442.0,96437.0,0.24621317]
[1739114932568,0.2073557,96438.0,96437.0,0.24621317]
[1739114934872,0.2173557,96438.0,96437.0,0.24621317]
[1739114936373,0.2073622,96435.0,96434.0,0.00015548]
[1739114938387,0.2113622,96435.0,96434.0,0.00015548]
[1739114938884,0.2153622,96435.0,96434.0,0.00015548]
[1739114939979,0.2833222,96435.0,96434.0,0.00015548]
[1739114940777,0.2883222,96435.0,96434.0,0.00015548]
[1739114940977,0.2933222,96435.0,96434.0,0.00015548]
[1739114941686,0.2753222,96435.0,96434.0,0.00015548]
[1739114944374,0.2763222,96435.0,96434.0,0.00015548]
[1739114944990,0.2773222,96435.0,96434.0,0.00015548]
[1739114945788,0.6381222,96435.0,96434.0,0.00015548]
[1739114946487,0.43076,96435.0,96421.0,0.0343]
[1739114946677,0.207388,96423.0,96421.0,0.0343]
[1739114946992,0.2073966,96419.0,96418.0,0.3608]
[1739114948279,0.2113966,96419.0,96418.0,0.3608]
[1739114949290,0.2153966,96419.0,96418.0,0.3608]
[1739114950588,0.2074117,96412.0,96411.0,0.0359]
[1739114951187,0.2074117,96412.0,96409.0,0.0001039]
[1739114951685,0.0342,96418.0,96409.0,0.0001039]
[1739114951878,0.2074138,96411.0,96409.0,0.0001039]
[1739114952896,0.2084138,96411.0,96409.0,0.0001039]
[1739114953195,0.001,96411.0,96409.0,0.0001039]
[1739114953490,0.00155605,96432.0,96427.0,0.2073794]
[1739114953698,0.1025,96450.0,96427.0,0.7216]
[1739114953889,0.2073582,96437.0,96427.0,1.8608]
[1739114954089,0.2073582,96437.0,96436.0,0.56816]
[1739114955793,0.2083582,96437.0,96436.0,0.56816]
[1739114956500,0.001,96437.0,96436.0,0.56816]
[1739114957197,0.002,96437.0,96436.0,0.57016]
[1739114959900,0.002,96437.0,96436.0,0.3628]
[1739114959901,0.2093579,96437.0,96436.0,0.3628]
[1739114960599,0.2093579,96437.0,96436.0,0.57016]
[1739114963991,0.2093579,96437.0,96436.0,0.3628]
[1739114964396,0.2093579,96437.0,96436.0,0.002]
[1739115001625,0.2073772,96428.0,96427.0,0.185248]
[1739115002316,0.3608,96432.0,96424.0,0.1094306]
[1739115002317,0.2073837,96425.0,96424.0,0.1094306]
[1739115002525,0.2746237,96425.0,96424.0,0.1094306]
[1739115003719,0.2806237,96425.0,96424.0,0.1094306]
[1739115005409,0.2806237,96425.0,96415.0,0.0001039]
[1739115005410,0.207403,96416.0,96415.0,0.0001039]
[1739115006815,0.006,96416.0,96415.0,0.2075091]
[1739115007517,0.006,96416.0,96415.0,0.5683091]
[1739115011323,0.00015557,96425.0,96415.0,0.67109371]
[1739115011525,0.00015557,96425.0,96424.0,0.5681858]
[1739115012629,0.00615557,96425.0,96424.0,0.5681858]
[1739115012831,0.00815557,96425.0,96424.0,0.5681858]
[1739115014527,0.01215557,96425.0,96424.0,0.5681858]
[1739115019634,0.01215557,96425.0,96424.0,0.2073858]
[1739115019839,0.01215557,96425.0,96424.0,0.5681858]
[1739115024139,0.01215557,96425.0,96424.0,0.3608]
[1739115028949,0.01215557,96425.0,96423.0,0.2073873]
[1739115030254,0.01115557,96425.0,96423.0,0.2073873]
[1739115030551,0.00515557,96425.0,96423.0,0.2073873]
[1739115030851,0.01115557,96425.0,96423.0,0.2073873]
[1739115033757,0.01115557,96425.0,96424.0,0.2073858]
[1739115034959,0.00615557,96425.0,96424.0,0.2073858]
[1739115035258,0.01215557,96425.0,96424.0,0.2073858]
[1739115043258,0.21953927,96425.0,96424.0,0.2073858]
[1739115049672,0.01215557,96425.0,96419.0,0.3608]
[1739115049970,0.2073944,96420.0,96419.0,0.3608]
[1739115050175,0.2073944,96420.0,96419.0,0.2073966]
[1739115051375,0.207403,96416.0,96415.0,0.0001039]
[1739115052874,0.209403,96416.0,96415.0,0.0001039]
[1739115053275,0.211403,96416.0,96415.0,0.0001039]
[1739115053962,0.22197986,96416.0,96415.0,0.0001039]
[1739115054670,0.2074181,96409.0,96408.0,0.00155578]
[1739115054879,0.2074246,96406.0,96405.0,0.24621317]
[1739115055076,0.4276246,96406.0,96405.0,0.24621317]
[1739115056476,0.4326246,96406.0,96405.0,0.24621317]
[1739115056773,0.4326246,96406.0,96400.0,0.1]
[1739115056774,0.2074353,96401.0,96400.0,0.1]
[1739115057972,0.5682353,96401.0,96400.0,0.1]
[1739115058178,0.5712353,96401.0,96400.0,0.1]
[1739115059477,0.7944353,96401.0,96400.0,0.1]
[1739115059671,0.2262,96401.0,96400.0,0.3074375]
[1739115060764,0.2262,96401.0,96400.0,0.6682375]
[1739115062281,0.2262,96401.0,96400.0,0.67837276]
[1739115062978,0.2262,96401.0,96400.0,0.6682375]
[1739115065273,0.006,96401.0,96400.0,0.6682375]
[1739115066479,0.0416,96401.0,96400.0,0.3074375]
[1739115070683,0.0416,96401.0,96400.0,0.1]
[1739115074687,0.2618,96401.0,96400.0,0.1]
[1739115078288,0.4024,96401.0,96400.0,0.1]
[1739115078477,0.7024,96401.0,96380.0,0.00155624]
[1739115078680,0.5682783,96381.0,96380.0,0.00155624]
[1739115080390,0.5802783,96381.0,96380.0,0.00155624]
[1739115081787,0.5742783,96381.0,96380.0,0.00155624]
[1739115081990,0.5802783,96381.0,96380.0,0.00155624]
[1739115082988,0.5812783,96381.0,96380.0,0.00155624]
[1739115085698,0.5752783,96381.0,96380.0,0.00155624]
[1739115085900,0.5812783,96381.0,96380.0,0.00155624]
[1739115087497,0.5752783,96381.0,96380.0,0.00155624]
[1739115087689,0.5812783,96381.0,96380.0,0.00155624]
[1739115090201,0.5752783,96381.0,96380.0,0.00155624]
[1739115090396,0.2204783,96381.0,96380.0,0.00155624]
[1739115092703,0.2134783,96381.0,96380.0,0.00155624]
[1739115093000,0.2204783,96381.0,96380.0,0.00155624]
[1739115093591,0.2550783,96381.0,96380.0,0.00155624]
[1739115093798,0.013,96381.0,96380.0,0.00155624]
[1739115094202,0.014,96381.0,96380.0,0.03425624]
[1739115096407,0.013,96381.0,96380.0,0.03425624]
[1739115096802,0.013,96381.0,96380.0,0.04450576]
[1739115097499,0.00015557,96400.0,96380.0,0.40530576]
[1739115097699,0.00015557,96400.0,96398.0,0.2074412]
[1739115097909,0.00015557,96400.0,96399.0,0.0661]
[1739115099911,0.00015557,96400.0,96399.0,0.0701]
[1739115100109,0.00115557,96400.0,96399.0,0.0701]
[1739115100705,0.00015557,96400.0,96399.0,0.0701]
[1739115100909,0.00115557,96400.0,96399.0,0.0761]
[1739115106909,0.2074094,96414.0,96399.0,0.4369]
[1739115107208,0.2074094,96414.0,96413.0,0.2074094]
[1739115107408,0.3608,96419.0,96418.0,0.2073987]
[1739115107617,0.18546584,96420.0,96418.0,0.2073987]
[1739115109921,0.207384,96425.0,96422.0,0.2073888]
[1739115110315,0.207384,96425.0,96423.0,0.2073866]
[1739115110917,0.208384,96425.0,96423.0,0.2073866]
[1739115111911,0.001,96425.0,96423.0,0.2073866]
[1739115112513,0.56833127,96429.0,96428.0,0.2073772]
[1739115113822,0.57433127,96429.0,96428.0,0.2073772]
[1739115115313,0.21353127,96429.0,96428.0,0.2073772]
[1739115120625,0.2073901,96423.0,96422.0,0.2073882]
[1739115122724,0.2073901,96423.0,96422.0,0.2083882]
[1739115123433,0.2083901,96423.0,96422.0,0.2083882]
[1739115124233,0.001,96423.0,96422.0,0.2083882]
[1739115124619,0.00015557,96429.0,96428.0,0.2073772]
[1739115126725,0.00515557,96429.0,96428.0,0.2073772]
[1739115127431,0.00315557,96429.0,96428.0,0.2073772]
[1739115128435,0.00815557,96429.0,96428.0,0.2083772]
[1739115128732,0.00915557,96429.0,96428.0,0.2153772]
[1739115129130,0.01515557,96429.0,96428.0,0.2093772]
[1739115133833,0.01515557,96429.0,96428.0,0.5701772]
[1739115134927,0.2202,96450.0,96428.0,0.3628]
[1739115135129,0.2202,96450.0,96445.0,0.2073399]
[1739115135130,0.207332,96449.0,96445.0,0.2073399]
[1739115136440,0.207332,96449.0,96445.0,0.2093399]
[1739115136837,0.2252,96450.0,96445.0,0.002]
[1739115137037,0.2252,96450.0,96449.0,0.207332]
[1739115137238,0.2202,96450.0,96449.0,0.207332]
[1739115138129,0.3608,96451.0,96449.0,0.207332]
[1739115138341,0.3608,96451.0,96449.0,0.209332]
[1739115138541,0.00015557,96457.0,96456.0,0.207317]
[1739115138742,0.18546584,96470.0,96469.0,0.207289]
[1739115139625,0.18546584,96470.0,96469.0,0.568089]
[1739115140037,0.19046584,96470.0,96469.0,0.568089]
[1739115140541,0.005,96470.0,96469.0,0.568089]
[1739115140741,0.00015557,96479.0,96478.0,0.2072697]
[1739115140946,0.00015557,96479.0,96478.0,0.5680697]
[1739115142541,0.00215557,96479.0,96478.0,0.5680697]
[1739115143341,0.00215557,96479.0,96478.0,0.5730697]
[1739115143342,0.00115557,96479.0,96478.0,0.5730697]
[1739115144628,0.00015557,96479.0,96478.0,0.5730697]
[1739115144833,0.00015557,96479.0,96478.0,0.5760697]
[1739115145043,0.00015557,96479.0,96478.0,0.2152697]
[1739115145232,0.00015557,96479.0,96478.0,0.008]
[1739115146637,0.0105808,96479.0,96478.0,0.008]
[1739115146947,0.00015557,96479.0,96478.0,0.008]
[1739115154945,0.20742317,96479.0,96478.0,0.008]
[1739115156245,0.63898317,96479.0,96478.0,0.008]
[1739115157441,0.85918317,96479.0,96478.0,0.008]
[1739115158242,0.49838317,96479.0,96478.0,0.008]
[1739115158550,0.42762317,96479.0,96478.0,0.2152697]
[1739115158748,0.22035557,96479.0,96478.0,0.2152697]
[1739115160054,0.08126923,96490.0,96489.0,0.2072461]
[1739115160055,0.01034923,96490.0,96489.0,0.2072461]
[1739115160251,0.01034923,96490.0,96489.0,0.5680461]
[1739115160546,0.2072418,96491.0,96489.0,0.2072461]
[1739115161746,0.2072561,96485.0,96483.0,0.5680585]
[1739115163155,0.001,96490.0,96483.0,0.3608]
[1739115163353,0.2082449,96490.0,96487.0,0.207249]
[1739115163545,0.001,96490.0,96487.0,0.207249]
[1739115163745,0.2072466,96489.0,96487.0,0.207249]
[1739115164846,0.2072561,96485.0,96483.0,0.3628]
[1739115165254,0.2072561,96485.0,96483.0,0.3608]
[1739115165655,0.2072561,96485.0,96483.0,0.5680575]
[1739115166252,0.2072418,96491.0,96486.0,0.2072521]
[1739115166648,0.001,96489.0,96486.0,0.2072521]
[1739115167047,0.001,96489.0,96488.0,0.2072482]
[1739115167252,0.2072458,96490.0,96488.0,0.2072482]
[1739115167646,0.2072352,96495.0,96489.0,0.2072449]
[1739115167845,0.3608,96498.0,96497.0,0.2072289]
[1739115168050,0.001,96489.0,96488.0,0.07434455]
[1739115168253,0.001,96489.0,96483.0,0.3608]
[1739115169355,0.001,96489.0,96488.0,0.2072482]
[1739115169557,0.3608,96498.0,96496.0,0.2072291]
[1739115170954,0.207226,96499.0,96498.0,0.2072267]
[1739115171251,0.10015548,96500.0,96489.0,0.0706]
[1739115171455,0.2072352,96495.0,96494.0,0.2072327]
[1739115171854,0.10015548,96500.0,96483.0,0.3608]
[1739115172053,0.207244,96490.0,96483.0,0.3608]
[1739115172254,0.207244,96490.0,96489.0,0.2072461]
[1739115174261,0.2072327,96496.0,96495.0,0.2072255]
[1739115174657,0.10015548,96500.0,96499.0,0.2072246]
[1739115175150,0.30737798,96500.0,96499.0,0.2072246]
[1739115175354,0.10015548,96500.0,96499.0,0.2072246]
[1739115177663,0.10015548,96500.0,96499.0,0.21746986]
[1739115177860,0.10015548,96500.0,96499.0,0.22146986]
[1739115178361,0.10015548,96500.0,96499.0,0.21746986]
[1739115178557,0.10015548,96500.0,96499.0,0.22246986]
[1739115178763,0.10015548,96500.0,96499.0,0.23146986]
[1739115179762,0.10015548,96500.0,96499.0,0.59226986]
[1739115180163,0.10015548,96500.0,96499.0,0.59426986]
[1739115183560,0.10015548,96500.0,96499.0,0.5840246]
[1739115185168,0.16735548,96500.0,96499.0,0.5840246]
[1739115186772,0.16735548,96500.0,96499.0,0.2232246]
[1739115188973,0.10015548,96500.0,96499.0,0.2232246]
[1739115198570,0.30737798,96500.0,96499.0,0.2232246]
[1739115198964,0.30737798,96500.0,96499.0,0.016]
[1739115199765,0.2072375,96493.0,96492.0,0.18492877]
[1739115199973,0.2072375,96493.0,96488.0,0.24621317]
[1739115199974,0.2072461,96489.0,96488.0,0.24621317]
[1739115200181,0.2786461,96489.0,96488.0,0.24621317]
[1739115200569,0.2786461,96489.0,96486.0,0.24621317]
[1739115200876,0.2072496,96488.0,96486.0,0.24621317]
[1739115203085,0.2072496,96488.0,96486.0,0.45346517]
[1739115203477,0.2142496,96488.0,96486.0,0.45446517]
[1739115204369,0.2202496,96488.0,96486.0,0.45446517]
[1739115204780,0.2202496,96488.0,96486.0,0.24721317]
[1739115205478,0.2202496,96488.0,96486.0,0.001]
[1739115206574,0.2202496,96488.0,96486.0,0.2082517]
[1739115207083,0.013,96488.0,96486.0,0.2082517]
[1739115207773,0.013,96488.0,96487.0,0.3608]
[1739115208784,0.10015548,96500.0,96487.0,0.3608]
[1739115208981,0.10015548,96500.0,96499.0,0.2072246]
[1739115210978,0.10115548,96500.0,96499.0,0.2132246]
[1739115211488,0.10115548,96500.0,96499.0,0.2222246]
[1739115212087,0.10115548,96500.0,96499.0,0.23267941]
[1739115215592,0.1062,96529.0,96521.0,0.2071774]
[1739115215796,0.0344,96529.0,96521.0,0.2071774]
[1739115216094,0.2415623,96529.0,96521.0,0.2071774]
[1739115216688,0.0344,96529.0,96514.0,0.2071905]
[1739115216882,0.2071774,96521.0,96518.0,0.2071834]
[1739115217881,0.2071774,96521.0,96519.0,0.2071812]
[1739115220592,0.2071864,96517.0,96512.0,0.01046015]
[1739115220893,0.2071864,96517.0,96515.0,0.2071896]
[1739115221484,0.3608,96522.0,96519.0,0.20718]
[1739115221886,0.5679758,96522.0,96519.0,0.20718]
[1739115222295,0.2071778,96521.0,96519.0,0.20718]
[1739115224494,0.2071796,96520.0,96519.0,0.20718]
[1739115224887,0.2071796,96520.0,96512.0,0.00015548]
[1739115225093,0.2071946,96514.0,96513.0,0.2071934]
[1739115227302,0.2071946,96514.0,96513.0,0.2101934]
[1739115227602,0.2071946,96514.0,96513.0,0.2121934]
[1739115227804,0.2071799,96520.0,96519.0,0.2071773]
[1739115234801,0.2202,96526.0,96517.0,0.01027052]
[1739115235001,0.2202,96526.0,96512.0,0.00015548]
[1739115235002,0.427368,96526.0,96525.0,0.2071688]
[1739115236098,0.429368,96526.0,96525.0,0.2071688]
[1739115237698,0.002,96526.0,96525.0,0.2071688]
[1739115239009,0.0992,96544.0,96525.0,0.01049041]
[1739115239299,0.18546584,96545.0,96539.0,0.2071388]
[1739115239505,0.18546584,96545.0,96539.0,0.5679388]
[1739115240097,0.18546584,96545.0,96539.0,0.2071388]
[1739115241194,0.39259244,96545.0,96539.0,0.2091388]
[1739115241397,0.2071334,96542.0,96539.0,0.2091388]
[1739115241994,0.101,96540.0,96539.0,0.2091388]
[1739115242700,0.1,96540.0,96539.0,0.2121388]
[1739115247401,0.1,96540.0,96539.0,0.3154388]
[1739115251008,0.00010331,96549.0,96539.0,0.1083]
[1739115251208,0.00010331,96549.0,96548.0,0.2071195]
[1739115252305,0.00110331,96549.0,96548.0,0.2071195]
[1739115256011,0.00110331,96549.0,96548.0,0.21738196]
[1739115256815,0.00110331,96549.0,96548.0,0.2071195]
[1739115257819,0.20822061,96549.0,96548.0,0.2071195]
[1739115259817,0.20822061,96549.0,96539.0,0.07434455]
[1739115260118,0.207133,96544.0,96543.0,0.2071302]
[1739115261517,0.104,96548.0,96546.0,0.2071225]
[1739115264125,0.3111202,96548.0,96546.0,0.2071225]
[1739115264325,0.00010331,96549.0,96538.0,0.44714991]
[1739115264531,0.00010331,96549.0,96548.0,0.2071195]
[1739115266626,0.00110331,96549.0,96548.0,0.2071195]
[1739115267345,0.00110331,96549.0,96548.0,0.3103195]
[1739115267932,0.00110331,96549.0,96548.0,0.32080272]
[1739115268133,1e-08,96549.0,96548.0,0.33586856]
[1739115268845,1e-08,96549.0,96548.0,0.36027196]
[1739115269632,0.2548,96574.0,96548.0,0.45315246]
[1739115269838,0.0346,96574.0,96564.0,0.07434455]
[1739115270150,0.18546584,96577.0,96568.0,0.2070764]
[1739115270447,0.18546584,96577.0,96573.0,0.2070644]
[1739115270746,0.18546584,96577.0,96575.0,0.2070606]
[1739115271754,0.0352,96585.0,96568.0,0.0704]
[1739115272049,0.0352,96585.0,96569.0,0.0158603]
[1739115272243,4.957e-05,96576.0,96570.0,0.07434455]
[1739115273348,4.957e-05,96576.0,96568.0,0.001]
[1739115274043,4.957e-05,96576.0,96567.0,0.3608]
[1739115275740,4.957e-05,96576.0,96571.0,0.2070701]
[1739115276345,4.957e-05,96576.0,96567.0,0.3608]
[1739115280250,4.957e-05,96576.0,96566.0,0.21737249]
[1739115281151,4.957e-05,96576.0,96566.0,0.01029189]
[1739115281455,4.957e-05,96576.0,96568.0,0.2070751]
[1739115283556,0.3608,96573.0,96568.0,0.2070751]
[1739115284053,0.3938,96573.0,96568.0,0.2070751]
[1739115284549,0.033,96573.0,96568.0,0.2070751]
[1739115284956,0.0355,96572.0,96568.0,0.2070751]
[1739115285255,0.0355,96572.0,96570.0,0.2070723]
[1739115288255,0.0355,96572.0,96570.0,0.21739101]
[1739115290151,0.0355,96572.0,96559.0,0.3609554]
[1739115290348,0.2070933,96561.0,96559.0,0.0001554]
[1739115291457,0.2070933,96561.0,96559.0,0.0021554]
[1739115292259,0.2070933,96561.0,96559.0,0.0061554]
[1739115293260,0.21726972,96561.0,96559.0,0.0061554]
[1739115303764,0.3608,96560.0,96559.0,0.0061554]
[1739115304160,0.2071323,96543.0,96539.0,0.453906]
[1739115304360,0.2071323,96543.0,96541.0,0.04342941]
[1739115304562,0.2071323,96543.0,96541.0,0.25056271]
[1739115304762,0.2071323,96543.0,96542.0,0.2071324]
[1739115307062,0.3608,96549.0,96541.0,0.001]
[1739115307063,0.2071324,96542.0,96541.0,0.001]
[1739115307466,0.2071367,96540.0,96539.0,0.2467677]
[1739115307668,0.5679367,96540.0,96539.0,0.2467677]
[1739115307869,0.5679367,96540.0,96539.0,0.00155354]
[1739115308063,0.2071495,96534.0,96533.0,0.00015532]
[1739115309386,0.2081495,96534.0,96533.0,0.00915532]
[1739115310275,0.2081495,96534.0,96533.0,0.01615532]
[1739115313979,0.001,96534.0,96521.0,0.0338]
[1739115314174,0.3608,96524.0,96518.0,0.2071819]
[1739115314378,0.2071817,96519.0,96518.0,0.2071819]
[1739115315281,0.5689724,96524.0,96516.0,0.01034092]
[1739115315576,0.2071777,96521.0,96512.0,0.0335]
[1739115315976,0.001,96519.0,96518.0,0.2071839]
[1739115317375,0.006,96519.0,96518.0,0.2071839]
[1739115317973,0.005,96519.0,96518.0,0.2071839]
[1739115318674,0.011,96519.0,96518.0,0.2081839]
[1739115321385,0.2181817,96519.0,96518.0,0.2081839]
[1739115328280,0.2181817,96519.0,96518.0,0.001]
[1739115329990,0.2181817,96519.0,96518.0,0.2081839]
[1739115330698,0.2181817,96519.0,96518.0,0.001]
[1739115331792,0.4383817,96519.0,96518.0,0.18498985]
[1739115332686,0.4423817,96519.0,96518.0,0.18598985]
[1739115333390,0.4423817,96519.0,96518.0,0.18498985]
[1739115333685,0.2362,96519.0,96512.0,0.24521416]
[1739115333893,0.2071946,96513.0,96512.0,0.24521416]
[1739115335199,0.2121946,96513.0,96512.0,0.24521416]
[1739115335388,0.2121946,96513.0,96512.0,0.24621416]
[1739115335691,0.4323946,96513.0,96512.0,0.001]
[1739115336090,0.4383946,96513.0,96512.0,0.001]
[1739115337891,0.2072011,96510.0,96509.0,0.00015541]
[1739115338086,0.5680011,96510.0,96509.0,0.00015541]
[1739115339110,0.5730011,96510.0,96509.0,0.00015541]
[1739115340409,0.5770011,96510.0,96509.0,0.00015541]
[1739115341112,0.2072311,96496.0,96495.0,0.24521416]
[1739115342404,0.2072311,96496.0,96495.0,0.24721416]
[1739115343813,0.2072311,96496.0,96495.0,0.002]
[1739115345014,0.2072504,96487.0,96486.0,0.00015541]
[1739115345509,0.5680504,96487.0,96486.0,0.00015541]
[1739115346302,0.5700504,96487.0,96486.0,0.00015541]
[1739115347609,0.5740504,96487.0,96486.0,0.00015541]
[1739115348012,0.5790504,96487.0,96486.0,0.00115541]
[1739115349920,0.6528904,96487.0,96486.0,0.00115541]
[1739115350611,0.8730904,96487.0,96486.0,0.00115541]
[1739115350806,0.88318401,96487.0,96486.0,0.00115541]
[1739115352722,0.88318401,96487.0,96486.0,1e-08]
[1739115356823,0.52238401,96487.0,96486.0,1e-08]
[1739115357036,0.88318401,96487.0,96486.0,1e-08]
[1739115357417,0.80934401,96487.0,96486.0,1e-08]
[1739115357618,0.88330401,96487.0,96486.0,1e-08]
[1739115388150,0.18546584,96500.0,96486.0,0.66080001]
[1739115388349,0.18546584,96500.0,96499.0,0.5680246]
[1739115389947,0.18646584,96500.0,96499.0,0.5760246]
[1739115390648,0.18746584,96500.0,96499.0,0.5840246]
[1739115390846,0.18746584,96500.0,96499.0,0.6182246]
[1739115391646,0.002,96500.0,96499.0,0.6182246]
[1739115392353,0.2202,96519.0,96499.0,0.711]
[1739115392544,0.2202,96519.0,96514.0,0.2071912]
[1739115392851,0.3608,96520.0,96515.0,0.0719]
[1739115393254,0.3608,96520.0,96516.0,0.2071881]
[1739115393944,0.2202,96527.0,96523.0,0.2071728]
[1739115394145,0.2202,96527.0,96524.0,0.036]
[1739115394345,0.2202,96527.0,96526.0,0.2071667]
[1739115394652,0.36095541,96528.0,96526.0,0.2071667]
[1739115396349,0.002,96527.0,96526.0,0.2071667]
[1739115396549,0.002,96527.0,96526.0,0.2091667]
[1739115397052,0.36095541,96528.0,96526.0,0.2111667]
[1739115397250,0.00015541,96528.0,96526.0,0.5719667]
[1739115398148,0.00015541,96528.0,96526.0,0.5699667]
[1739115398456,0.00015541,96528.0,96526.0,0.5709667]
[1739115399046,0.00015541,96528.0,96526.0,0.5699667]
[1739115399555,0.00015541,96528.0,96526.0,0.5679667]
[1739115399754,0.00015541,96528.0,96526.0,0.5699667]
[1739115399946,0.00015541,96528.0,96526.0,0.2091667]
[1739115403556,0.20731821,96528.0,96526.0,0.2091667]
[1739115405861,0.20731821,96528.0,96526.0,0.002]
[1739115412969,0.2071645,96527.0,96526.0,0.002]
[1739115414168,0.00015541,96528.0,96526.0,0.001]
[1739115414358,0.2071645,96527.0,96526.0,0.003]
[1739115416969,0.2071645,96527.0,96526.0,0.002]
[1739115417270,0.2071645,96527.0,96526.0,0.003]
[1739115421983,0.4273645,96527.0,96526.0,0.003]
[1739115439076,0.4273645,96527.0,96526.0,0.002]
[1739115439290,0.4283645,96527.0,96526.0,0.012]
[1739115441979,0.7891645,96527.0,96526.0,0.012]
[1739115453003,0.582,96527.0,96512.0,0.398]
[1739115453197,0.2071946,96513.0,96512.0,0.398]
[1739115455398,0.2221946,96513.0,96512.0,0.4]
[1739115462214,0.2221946,96513.0,96512.0,0.6071967]
[1739115467104,0.2221946,96513.0,96512.0,0.4]
[1739115467315,0.2221946,96513.0,96512.0,0.3628]
[1739115468907,0.2221946,96513.0,96512.0,0.002]
[1739115472101,0.2221946,96513.0,96512.0,0.2091967]
[1739115474809,0.2221946,96513.0,96512.0,0.39398276]
[1739115478712,0.2221946,96513.0,96512.0,0.2091967]
[1739115483205,0.7881653,96527.0,96513.0,0.2071935]
[1739115483410,0.581,96527.0,96525.0,0.2071667]
[1739115483611,0.2071667,96526.0,96525.0,0.2071667]
[1739115485219,0.2081667,96526.0,96525.0,0.2191667]
[1739115485419,0.001,96526.0,96525.0,0.2191667]
[1739115485719,0.002,96526.0,96525.0,0.22952095]
[1739115489614,0.002,96526.0,96525.0,0.2191667]
[1739115491421,0.002,96526.0,96525.0,0.40350931]
[1739115495630,0.002,96526.0,96525.0,0.2191667]
[1739115499732,0.002,96526.0,96525.0,0.5799667]
[1739115504728,0.002,96526.0,96525.0,0.6114667]
[1739115508231,0.002,96526.0,96525.0,0.2506667]
[1739115508541,0.002,96526.0,96525.0,0.6114667]
[1739115516336,0.2071363,96541.0,96525.0,0.6114667]
[1739115516337,0.2071325,96542.0,96530.0,0.051789]
[1739115516637,0.2071325,96542.0,96541.0,0.5679323]
[1739115517833,0.2071325,96542.0,96541.0,0.5689323]
[1739115518731,0.2071325,96542.0,96541.0,0.75343408]
[1739115519943,0.2071325,96542.0,96541.0,0.54630178]
[1739115523035,0.2071325,96542.0,96541.0,0.3618]
[1739115531245,0.2071325,96542.0,96541.0,0.001]
[1739115531549,0.5679325,96542.0,96541.0,0.001]
[1739115536254,0.7881325,96542.0,96541.0,0.001]
[1739115538041,0.2071517,96533.0,96532.0,0.00015541]
[1739115538250,0.5679517,96533.0,96532.0,0.00015541]
[1739115539240,0.5679517,96533.0,96532.0,0.00415541]
[1739115540753,0.7881517,96533.0,96532.0,0.00415541]
[1739115540951,0.7881517,96533.0,96532.0,0.00815541]
[1739115543058,0.79835219,96533.0,96532.0,0.00815541]
[1739115543748,0.86895219,96533.0,96532.0,0.00815541]
[1739115544258,0.50815219,96533.0,96532.0,0.00815541]
[1739115546457,0.4979517,96533.0,96532.0,0.00815541]
[1739115546647,0.2071517,96533.0,96532.0,0.21530921]
[1739115554550,0.2071281,96544.0,96533.0,0.2071508]
[1739115554764,0.3608,96564.0,96545.0,0.2071259]
[1739115554765,0.2071162,96550.0,96545.0,0.2071259]
[1739115554955,0.207118,96549.0,96545.0,0.2071259]
[1739115555957,0.2212,96546.0,96545.0,0.2071259]
[1739115557662,0.2222,96546.0,96545.0,0.2071259]
[1739115558461,0.002,96546.0,96545.0,0.2071259]
[1739115562666,0.002,96546.0,96545.0,0.21723398]
[1739115563164,0.2091238,96546.0,96545.0,0.2071259]
[1739115585377,0.002,96546.0,96545.0,0.2071259]
[1739115585978,0.00155412,96561.0,96560.0,0.2070938]
[1739115586183,0.00155412,96561.0,96560.0,0.5678938]